bitfinex/quotes_BTCUSD_20250410
["timestamp","ask_amount","ask_price","bid_price","bid_amount"]
[1744315503268,0.03507857,79680.0,79679.0,2.2e-07]
[1744315503632,0.01169129,79680.0,79679.0,2.2e-07]
[1744315503832,0.263543,79683.0,79679.0,2.2e-07]
[1744315504037,0.01255,79681.0,79679.0,2.2e-07]
[1744315504284,0.012549,79683.0,79679.0,2.2e-07]
[1744315504486,0.263498,79697.0,79684.0,0.012549]
[1744315504687,0.0001053,79697.0,79689.0,0.250974]
[1744315504960,0.0001053,79697.0,79687.0,0.263529]
[1744315505151,0.0001053,79697.0,79690.0,0.250971]
[1744315505334,0.0001053,79697.0,79689.0,0.250974]
[1744315505855,0.0001053,79697.0,79690.0,0.250971]
[1744315506468,0.0001053,79697.0,79690.0,0.263519]
[1744315507173,0.0001053,79697.0,79696.0,0.2635]
[1744315509093,0.0001053,79697.0,79695.0,0.250955]
[1744315509513,0.0001053,79697.0,79695.0,0.263502]
[1744315509714,0.0001053,79697.0,79695.0,0.250955]
[1744315509975,0.0001053,79697.0,79695.0,0.263502]
[1744315510161,0.0001053,79697.0,79696.0,0.012547]
[1744315510365,0.0001053,79697.0,79696.0,0.01505647]
[1744315511370,0.0001053,79697.0,79693.0,0.34]
[1744315511551,0.0001053,79697.0,79695.0,0.34]
[1744315511903,0.0001053,79697.0,79695.0,0.590956]
[1744315512055,0.0001053,79697.0,79696.0,0.012547]
[1744315512452,0.0001053,79697.0,79696.0,0.48196409]
[1744315512651,0.0001053,79697.0,79696.0,0.47945458]
[1744315513061,0.0001053,79697.0,79696.0,1.01453958]
[1744315513267,0.0001053,79697.0,79696.0,0.84695758]
[1744315513465,0.0001053,79697.0,79696.0,0.57945458]
[1744315513815,0.0001053,79697.0,79696.0,1.17709858]
[1744315514788,0.0001053,79697.0,79696.0,1.42805158]
[1744315515189,3e-07,79697.0,79696.0,1.84565158]
[1744315515391,0.0463,79739.0,79716.0,0.603434]
[1744315515630,0.2509478,79752.0,79716.0,1.36900158]
[1744315515773,0.250965,79746.0,79716.0,1.87049858]
[1744315515981,0.000168,79746.0,79716.0,1.97049858]
[1744315516418,0.000168,79746.0,79716.0,1.46900158]
[1744315516622,0.000168,79746.0,79716.0,2.25717158]
[1744315516990,0.000168,79746.0,79716.0,2.24462758]
[1744315517136,0.1309947,79742.0,79741.0,0.263352]
[1744315517339,0.15435447,79742.0,79741.0,0.263352]
[1744315517726,0.15435447,79742.0,79741.0,0.73025958]
[1744315517923,0.1309947,79742.0,79741.0,0.74263751]
[1744315519352,0.00010538,79742.0,79741.0,0.74263751]
[1744315521590,0.00010538,79742.0,79741.0,0.35237793]
[1744315521924,0.00010538,79742.0,79739.0,0.01259066]
[1744315522047,0.00010538,79742.0,79740.0,0.250814]
[1744315522249,0.00010538,79742.0,79739.0,0.263355]
[1744315523074,0.00010538,79742.0,79740.0,0.250814]
[1744315523275,0.00010538,79742.0,79739.0,0.263355]
[1744315523676,0.00010538,79742.0,79740.0,0.250814]
[1744315523880,0.00010538,79742.0,79738.0,0.26336]
[1744315524279,0.250812,79741.0,79734.0,0.34]
[1744315524483,0.00010538,79742.0,79734.0,0.34]
[1744315524484,0.00010538,79742.0,79737.0,0.250823]
[1744315524684,0.00010538,79742.0,79737.0,0.263364]
[1744315524878,0.00010538,79742.0,79739.0,0.250818]
[1744315525278,0.00010538,79742.0,79740.0,0.250814]
[1744315525483,0.00010538,79742.0,79741.0,0.01254]
[1744315526804,0.00010538,79742.0,79741.0,0.263352]
[1744315528674,0.00010538,79742.0,79741.0,0.39025958]
[1744315529113,0.00010538,79742.0,79741.0,0.263352]
[1744315529803,0.00010538,79742.0,79741.0,0.39025958]
[1744315532778,0.00010538,79742.0,79741.0,0.73025958]
[1744315533417,0.00010538,79742.0,79741.0,0.90597958]
[1744315537573,0.00010538,79742.0,79741.0,1.00597958]
[1744315543086,0.00010538,79742.0,79741.0,0.90607958]
[1744315546747,0.00010538,79742.0,79741.0,0.90607958]
[1744315548960,0.0001678,79743.0,79741.0,0.90607958]
[1744315549109,1.8e-07,79749.0,79748.0,0.703328]
[1744315549309,1.8e-07,79749.0,79748.0,0.83023558]
[1744315549743,1.8e-07,79749.0,79748.0,1.00591558]
[1744315552479,9.8e-07,79752.0,79751.0,0.603319]
[1744315552806,9.8e-07,79752.0,79751.0,1.14782658]
[1744315553015,0.0482,79782.0,79751.0,1.14782658]
[1744315553016,4.7e-07,79764.0,79763.0,0.012537]
[1744315553223,0.0482,79782.0,79766.0,0.452536]
[1744315553224,7.7e-07,79767.0,79766.0,0.452536]
[1744315553370,6.7e-07,79770.0,79769.0,0.452536]
[1744315553560,2.9e-07,79770.0,79769.0,0.83016658]
[1744315555944,2.9e-07,79770.0,79769.0,0.603259]
[1744315556144,2.9e-07,79770.0,79769.0,0.603359]
[1744315556346,0.29572029,79770.0,79769.0,0.0001]
[1744315556659,0.04500029,79770.0,79769.0,0.0001]
[1744315557121,0.04500029,79770.0,79769.0,0.250823]
[1744315557309,0.04500029,79770.0,79769.0,0.263359]
[1744315560366,0.06839316,79770.0,79769.0,0.263359]
[1744315560791,0.08008996,79770.0,79769.0,0.263359]
[1744315561669,0.08008996,79770.0,79769.0,0.250823]
[1744315561862,0.08008996,79770.0,79769.0,0.263359]
[1744315562624,0.03508996,79770.0,79769.0,0.263359]
[1744315563030,0.03508996,79770.0,79769.0,0.39026658]
[1744315563229,2.9e-07,79770.0,79769.0,0.39026658]
[1744315563637,0.25072029,79770.0,79769.0,0.0001]
[1744315563833,0.07170093,79770.0,79769.0,0.0001]
[1744315564036,0.33495693,79770.0,79769.0,0.0001]
[1744315565145,0.53680661,79770.0,79769.0,0.0001]
[1744315567394,0.40989903,79770.0,79769.0,0.0001]
[1744315567987,0.08380218,79770.0,79769.0,0.263359]
[1744315568135,0.03510218,79770.0,79769.0,0.263359]
[1744315568680,0.03593693,79770.0,79769.0,0.0001]
[1744315568881,0.07260093,79770.0,79769.0,0.0001]
[1744315569318,0.35039778,79770.0,79769.0,0.0001]
[1744315569900,0.33585693,79770.0,79769.0,0.0001]
[1744315570106,0.03510391,79770.0,79769.0,0.0001]
[1744315570357,0.03510391,79770.0,79769.0,0.263359]
[1744315570884,0.02340093,79770.0,79769.0,0.263359]
[1744315572894,0.02340093,79770.0,79769.0,0.73026658]
[1744315573064,2.9e-07,79770.0,79769.0,0.73026658]
[1744315574220,2.9e-07,79770.0,79769.0,0.77716658]
[1744315575712,2.9e-07,79770.0,79769.0,1.19476658]
[1744315578239,2.9e-07,79770.0,79769.0,1.24786658]
[1744315578589,2.9e-07,79770.0,79769.0,0.83026658]
[1744315578733,2.9e-07,79770.0,79769.0,0.73026658]
[1744315579952,2.9e-07,79770.0,79769.0,0.263359]
[1744315580455,2.9e-07,79770.0,79769.0,0.603359]
[1744315589433,2.9e-07,79770.0,79769.0,0.0001]
[1744315589434,0.30825629,79770.0,79769.0,0.0001]
[1744315590050,0.33165125,79770.0,79769.0,0.0001]
[1744315590256,0.34335057,79770.0,79769.0,0.0001]
[1744315590469,0.35789142,79770.0,79769.0,0.0001]
[1744315590658,0.308725,79749.0,79748.0,0.0001]
[1744315591191,0.33211996,79749.0,79748.0,0.0001]
[1744315591337,0.34381928,79749.0,79748.0,0.0001]
[1744315591539,0.35836013,79749.0,79748.0,0.0001]
[1744315591746,0.48526771,79749.0,79748.0,0.0001]
[1744315597318,0.08049428,79749.0,79748.0,0.0001]
[1744315597485,0.08049428,79749.0,79748.0,0.263428]
[1744315597684,0.05709932,79749.0,79748.0,0.263428]
[1744315598151,0.01169932,79749.0,79748.0,0.263428]
[1744315598362,0.049,79760.0,79757.0,0.263298]
[1744315598564,0.049,79760.0,79759.0,0.263292]
[1744315598711,0.13088932,79766.0,79764.0,0.250738]
[1744315598916,0.13088932,79766.0,79765.0,0.263272]
[1744315600185,0.13088932,79768.0,79766.0,0.250733]
[1744315600409,0.13088932,79768.0,79767.0,0.263266]
[1744315601431,0.13088932,79768.0,79766.0,0.250733]
[1744315601586,0.13088932,79768.0,79767.0,0.25073]
[1744315601993,0.13088932,79768.0,79766.0,0.263269]
[1744315602502,0.13088932,79768.0,79767.0,0.263266]
[1744315602706,0.13088932,79768.0,79766.0,0.263269]
[1744315603128,0.13088932,79768.0,79767.0,0.25073]
[1744315603895,0.13088932,79768.0,79767.0,0.263266]
[1744315604530,2.9e-07,79770.0,79768.0,0.250727]
[1744315604730,0.25072129,79770.0,79767.0,0.263266]
[1744315604924,2.9e-07,79770.0,79768.0,0.250726]
[1744315605306,2.9e-07,79770.0,79769.0,0.263259]
[1744315610496,2.9e-07,79770.0,79763.0,0.250742]
[1744315610497,0.25072129,79770.0,79763.0,0.250742]
[1744315610751,2.9e-07,79770.0,79767.0,0.25073]
[1744315610955,2.9e-07,79770.0,79768.0,0.250724]
[1744315611155,0.012536,79769.0,79764.0,0.012536]
[1744315611332,0.250723,79769.0,79767.0,0.250729]
[1744315611535,0.250727,79768.0,79765.0,0.263269]
[1744315611734,2.9e-07,79770.0,79766.0,0.012536]
[1744315611919,2.9e-07,79770.0,79768.0,0.250727]
[1744315612419,2.9e-07,79770.0,79768.0,0.250726]
[1744315612616,0.25072029,79770.0,79767.0,0.250728]
[1744315613709,0.02336347,79769.0,79767.0,0.250728]
[1744315613910,0.02336347,79769.0,79768.0,0.250727]
[1744315614150,2.9e-07,79770.0,79769.0,0.250723]
[1744315614460,0.02336375,79770.0,79769.0,0.250723]
[1744315615238,0.02336375,79770.0,79769.0,0.263259]
[1744315615440,0.02336375,79770.0,79769.0,0.83016658]
[1744315615644,0.02336375,79770.0,79769.0,0.87656658]
[1744315615867,2.9e-07,79770.0,79769.0,0.87656658]
[1744315616115,2.9e-07,79770.0,79769.0,0.88612103]
[1744315617815,4.9e-07,79775.0,79774.0,0.603243]
[1744315617947,4.9e-07,79775.0,79774.0,0.90539058]
[1744315618133,3.3e-07,79775.0,79774.0,0.90539058]
[1744315621780,0.002,79789.0,79788.0,0.703197]
[1744315621957,0.002,79789.0,79788.0,0.87770458]
[1744315624550,1e-06,79789.0,79788.0,0.87770458]
[1744315624751,0.0001679,79805.0,79799.0,0.36316]
[1744315624752,6.644e-05,79800.0,79799.0,0.36316]
[1744315625087,0.00019223,79800.0,79799.0,0.49006758]
[1744315625651,0.00019223,79800.0,79799.0,0.60316]
[1744315628204,0.00019223,79800.0,79799.0,0.60326]
[1744315631734,0.26334923,79800.0,79799.0,0.0001]
[1744315632032,0.31044923,79800.0,79799.0,0.0001]
[1744315632257,0.32499008,79800.0,79799.0,0.0001]
[1744315632421,0.45189766,79800.0,79799.0,0.0001]
[1744315632618,0.32753485,79789.0,79788.0,0.0001]
[1744315633015,0.32753485,79789.0,79770.0,0.263256]
[1744315633016,0.263268,79767.0,79762.0,0.250745]
[1744315633256,0.012536,79770.0,79766.0,0.250733]
[1744315633462,0.263257,79770.0,79766.0,0.250733]
[1744315633697,0.250717,79771.0,79767.0,0.250729]
[1744315633933,0.250723,79769.0,79766.0,0.250733]
[1744315634135,0.012536,79770.0,79767.0,0.250729]
[1744315634330,0.263255,79771.0,79766.0,0.00012584]
[1744315634635,0.250729,79768.0,79766.0,0.00012584]
[1744315634827,0.250725,79769.0,79766.0,0.00012584]
[1744315635030,0.250715,79772.0,79768.0,0.012536]
[1744315635230,0.250721,79770.0,79767.0,0.250728]
[1744315636238,0.25073,79767.0,79766.0,0.00012584]
[1744315636463,0.25072,79770.0,79767.0,0.25073]
[1744315636712,0.250725,79769.0,79766.0,0.00012584]
[1744315636921,0.250725,79769.0,79766.0,0.25085884]
[1744315637050,0.250725,79769.0,79766.0,0.00012584]
[1744315637257,0.250725,79769.0,79766.0,0.25085684]
[1744315637461,0.250729,79768.0,79766.0,0.00012584]
[1744315637661,0.0963,79767.0,79766.0,0.00012584]
[1744315637886,0.0493,79767.0,79766.0,0.26339484]
[1744315641155,0.0493,79767.0,79766.0,0.26349484]
[1744315642642,0.0493,79767.0,79766.0,0.00022584]
[1744315642842,0.312566,79767.0,79766.0,0.00022584]
[1744315643349,0.0493,79767.0,79766.0,0.00022584]
[1744315644402,0.0493,79767.0,79766.0,0.25095884]
[1744315644603,0.17496,79776.0,79775.0,0.250705]
[1744315644804,0.0456,79779.0,79778.0,0.250695]
[1744315644959,0.0456,79779.0,79778.0,0.263229]
[1744315645987,0.0456,79779.0,79778.0,0.250695]
[1744315646954,0.012533,79787.0,79778.0,0.250695]
[1744315646955,1.28968,79789.0,79788.0,0.250664]
[1744315647126,0.012533,79784.0,79779.0,0.250692]
[1744315647286,0.263209,79784.0,79779.0,0.250691]
[1744315647492,0.250681,79783.0,79778.0,0.250689]
[1744315647687,0.250681,79783.0,79779.0,0.250691]
[1744315648310,0.250681,79783.0,79780.0,0.250687]
[1744315648514,0.250674,79785.0,79780.0,0.012534]
[1744315648676,0.250677,79784.0,79782.0,0.25068]
[1744315648891,0.250729,79768.0,79759.0,0.250755]
[1744315649085,0.250729,79768.0,79741.0,1.2899]
[1744315649086,0.25073,79767.0,79745.0,0.1]
[1744315649335,0.263266,79767.0,79759.0,0.34]
[1744315649487,0.27780685,79767.0,79759.0,0.34]
[1744315649686,0.27780685,79767.0,79760.0,0.250751]
[1744315650318,0.27780685,79767.0,79761.0,0.250746]
[1744315651164,0.0451,79771.0,79770.0,0.25072]
[1744315651322,0.263266,79767.0,79761.0,0.250748]
[1744315651680,0.263266,79767.0,79759.0,0.250752]
[1744315651848,0.27780685,79767.0,79758.0,0.250755]
[1744315652253,0.27780685,79767.0,79748.0,0.0001]
[1744315652254,0.27780685,79767.0,79752.0,0.34]
[1744315652455,0.27780685,79767.0,79755.0,0.34]
[1744315652663,0.27780685,79767.0,79758.0,0.250758]
[1744315653737,0.27780685,79767.0,79759.0,0.250754]
[1744315653942,0.27780685,79767.0,79758.0,0.250757]
[1744315654497,0.27780685,79767.0,79759.0,0.250755]
[1744315655023,0.01454085,79767.0,79757.0,0.26329]
[1744315655142,0.26527085,79767.0,79761.0,0.012537]
[1744315655342,0.26527085,79767.0,79764.0,0.250737]
[1744315655672,0.26527085,79767.0,79763.0,0.250741]
[1744315657723,0.26527085,79767.0,79764.0,0.250737]
[1744315658130,0.26527085,79767.0,79763.0,0.250741]
[1744315658308,0.27780685,79767.0,79763.0,0.250741]
[1744315660098,0.28950093,79767.0,79763.0,0.250741]
[1744315660287,0.31290817,79767.0,79763.0,0.250741]
[1744315660984,0.31290817,79767.0,79764.0,0.250739]
[1744315661360,0.31290817,79767.0,79763.0,0.250741]
[1744315662123,0.31290817,79767.0,79764.0,0.250737]
[1744315663305,0.04964217,79767.0,79764.0,0.012536]
[1744315663552,0.30037217,79767.0,79764.0,0.250739]
[1744315664205,0.30037217,79767.0,79763.0,0.250739]
[1744315664488,0.31290817,79767.0,79764.0,0.250739]
[1744315664691,0.30037217,79767.0,79764.0,0.250739]
[1744315664895,0.03510132,79767.0,79766.0,0.25095884]
[1744315665193,0.03510132,79767.0,79766.0,0.00022584]
[1744315666072,0.29836732,79767.0,79766.0,0.00022584]
[1744315666997,0.31290817,79767.0,79766.0,0.00022584]
[1744315667606,0.03510132,79767.0,79766.0,0.25095884]
[1744315668159,0.03510132,79767.0,79766.0,0.26349484]
[1744315668793,0.27496008,79767.0,79766.0,0.00022584]
[1744315669111,0.28950093,79767.0,79766.0,0.00022584]
[1744315669972,0.31295126,79767.0,79766.0,0.00022584]
[1744315670672,0.03514441,79767.0,79766.0,0.00022584]
[1744315670872,0.03514441,79767.0,79766.0,0.26349484]
[1744315673651,0.03514441,79767.0,79766.0,0.25095884]
[1744315674912,0.03514441,79767.0,79766.0,0.00022584]
[1744315675539,0.28587441,79767.0,79766.0,0.00022584]
[1744315676397,0.03514441,79767.0,79766.0,0.00022584]
[1744315676916,0.28587441,79767.0,79766.0,0.00022584]
[1744315677154,0.03514441,79767.0,79766.0,0.25095884]
[1744315677596,0.03514441,79767.0,79766.0,0.26349484]
[1744315678111,0.01169408,79767.0,79766.0,0.26349484]
[1744315679522,0.01169408,79767.0,79766.0,0.25095884]
[1744315680135,0.01169408,79767.0,79766.0,0.00022584]
[1744315680334,0.01169408,79767.0,79766.0,0.25095884]
[1744315681214,0.01169408,79767.0,79766.0,0.00022584]
[1744315682843,0.26242408,79767.0,79766.0,0.00022584]
[1744315683587,0.01169408,79767.0,79766.0,0.00022584]
[1744315683785,0.02423008,79767.0,79766.0,0.00022584]
[1744315684062,0.27496008,79767.0,79766.0,0.00022584]
[1744315686177,0.29843912,79767.0,79766.0,0.00022584]
[1744315687896,0.03517312,79767.0,79766.0,0.00022584]
[1744315688134,0.28590312,79767.0,79766.0,0.00022584]
[1744315688464,0.03517312,79767.0,79766.0,0.00022584]
[1744315688813,0.28590312,79767.0,79766.0,0.00022584]
[1744315689021,0.26242408,79767.0,79766.0,0.00022584]
[1744315689223,0.27496008,79767.0,79766.0,0.00022584]
[1744315689843,0.01169408,79767.0,79766.0,0.00022584]
[1744315690371,0.01169408,79767.0,79766.0,0.26349484]
[1744315691653,0.01169408,79775.0,79774.0,0.250708]
[1744315692021,0.01169408,79775.0,79774.0,0.263243]
[1744315692264,0.01169408,79775.0,79774.0,0.250708]
[1744315692419,0.01169408,79775.0,79774.0,0.263243]
[1744315692620,0.01169408,79775.0,79769.0,0.012536]
[1744315692621,0.25073,79767.0,79766.0,0.00022584]
[1744315692938,0.263266,79767.0,79766.0,0.00022584]
[1744315693143,0.27780685,79767.0,79766.0,0.00022584]
[1744315693753,0.28950093,79767.0,79766.0,0.00022584]
[1744315694175,0.23950093,79767.0,79766.0,0.00022584]
[1744315696576,0.41560851,79767.0,79766.0,8.4e-07]
[1744315696779,1.33718502,79767.0,79766.0,8.4e-07]
[1744315697035,1.47390851,79767.0,79766.0,8.4e-07]
[1744315697381,0.355225,79749.0,79748.0,0.0001]
[1744315697623,0.49667343,79749.0,79748.0,0.0001]
[1744315697938,0.50836751,79749.0,79748.0,0.0001]
[1744315698735,0.33495993,79749.0,79748.0,0.0001]
[1744315699492,0.01169408,79749.0,79748.0,0.263428]
[1744315699922,0.250765,79756.0,79752.0,0.250775]
[1744315700095,0.012537,79758.0,79750.0,0.250783]
[1744315700301,0.263302,79756.0,79750.0,0.263322]
[1744315700501,0.263325,79749.0,79748.0,0.0001]
[1744315700934,0.27786585,79749.0,79748.0,0.0001]
[1744315705538,0.250784,79750.0,79748.0,0.0001]
[1744315705814,0.250786,79749.0,79748.0,0.0001]
[1744315706631,0.263325,79749.0,79748.0,0.0001]
[1744315708357,0.250784,79750.0,79748.0,0.250889]
[1744315708597,0.250786,79749.0,79748.0,0.0001]
[1744315709137,0.250784,79750.0,79748.0,0.0001]
[1744315709583,0.250786,79749.0,79748.0,0.0001]
[1744315709758,0.263325,79749.0,79748.0,0.0001]
[1744315710983,0.263323,79750.0,79748.0,0.0001]
[1744315711192,0.250786,79749.0,79748.0,0.0001]
[1744315711539,0.263325,79751.0,79748.0,0.250889]
[1744315711899,0.26531385,79754.0,79750.0,0.250781]
[1744315712101,0.01454085,79752.0,79750.0,0.012539]
[1744315712303,0.250752,79760.0,79756.0,0.250764]
[1744315712456,0.250758,79759.0,79755.0,0.250767]
[1744315712677,0.250758,79758.0,79755.0,0.250767]
[1744315712880,0.250758,79759.0,79755.0,0.250767]
[1744315713276,0.012537,79759.0,79754.0,0.263308]
[1744315713504,0.669862,79757.0,79755.0,0.250767]
[1744315713742,0.4191,79757.0,79755.0,0.250767]
[1744315714003,0.4191,79757.0,79748.0,0.0001]
[1744315714004,0.012538,79753.0,79748.0,0.0001]
[1744315714216,0.250786,79749.0,79748.0,0.0001]
[1744315714440,0.250784,79750.0,79748.0,0.0001]
[1744315715225,0.01454085,79758.0,79751.0,0.263318]
[1744315715479,0.250773,79754.0,79751.0,0.250779]
[1744315716712,0.250764,79756.0,79752.0,0.250776]
[1744315717187,0.250768,79755.0,79752.0,0.250776]
[1744315717429,0.250764,79756.0,79752.0,0.263314]
[1744315717700,0.250764,79756.0,79753.0,0.250771]
[1744315717897,0.250768,79755.0,79752.0,0.263314]
[1744315718565,0.01454085,79758.0,79752.0,0.012538]
[1744315718807,0.250743,79763.0,79760.0,0.263289]
[1744315719075,0.26528685,79762.0,79760.0,0.250752]
[1744315719308,0.26528685,79762.0,79759.0,0.263292]
[1744315719859,0.26528685,79762.0,79759.0,0.250754]
[1744315720121,0.01454085,79766.0,79763.0,0.250742]
[1744315720320,0.01454085,79766.0,79765.0,0.250736]
[1744315720506,0.01454085,79766.0,79763.0,0.012537]
[1744315720507,0.26527485,79766.0,79763.0,0.012537]
[1744315720983,0.01454085,79766.0,79764.0,0.250738]
[1744315721207,0.38197741,79767.0,79764.0,0.250739]
[1744315721453,0.250733,79766.0,79764.0,0.250739]
[1744315722334,0.13124741,79767.0,79765.0,0.250736]
[1744315722673,0.13124741,79767.0,79764.0,0.0001]
[1744315722674,0.250735,79766.0,79764.0,0.0001]
[1744315723099,0.38197741,79767.0,79764.0,0.250838]
[1744315723545,0.250735,79766.0,79764.0,0.0001]
[1744315724845,0.250736,79765.0,79764.0,0.0001]
[1744315726147,0.25077203,79767.0,79764.0,0.0001]
[1744315726312,0.26327,79766.0,79764.0,0.0001]
[1744315726509,0.263272,79765.0,79764.0,0.0001]
[1744315728115,0.250734,79766.0,79764.0,0.0001]
[1744315728456,0.25077703,79767.0,79764.0,0.0001]
[1744315728985,4.203e-05,79767.0,79766.0,0.263269]
[1744315729949,4.203e-05,79767.0,79766.0,0.77807658]
[1744315732528,4.203e-05,79767.0,79766.0,0.7905257]
[1744315732751,4.203e-05,79767.0,79766.0,1.5135377]
[1744315732893,0.13120538,79777.0,79766.0,1.5135377]
[1744315732894,3.8e-07,79777.0,79776.0,0.703236]
[1744315733104,4.23e-05,79777.0,79776.0,1.05416358]
[1744315734092,4.192e-05,79777.0,79776.0,1.05416358]
[1744315735024,4.192e-05,79777.0,79776.0,1.10306358]
[1744315737160,4.192e-05,79777.0,79776.0,1.1261864]
[1744315738183,4.192e-05,79777.0,79776.0,1.5904194]
[1744315742155,4.192e-05,79777.0,79776.0,1.5905194]
[1744315742712,4.192e-05,79777.0,79776.0,1.3752864]
[1744315743359,4.192e-05,79777.0,79776.0,1.35216358]
[1744315745074,4.192e-05,79777.0,79776.0,1.30326358]
[1744315747191,4.192e-05,79777.0,79776.0,1.12914358]
[1744315747578,4.192e-05,79777.0,79776.0,1.30286358]
[1744315750875,4.192e-05,79777.0,79776.0,1.12914358]
[1744315751079,4.192e-05,79777.0,79776.0,1.30286358]
[1744315753821,4.192e-05,79777.0,79776.0,1.05386358]
[1744315754026,4.192e-05,79777.0,79776.0,1.43266358]
[1744315754539,4.192e-05,79777.0,79776.0,1.25796358]
[1744315759948,4.192e-05,79777.0,79776.0,1.10396358]
[1744315760282,0.000168,79798.0,79797.0,0.263166]
[1744315760481,0.000168,79798.0,79797.0,0.73007358]
[1744315760896,0.000168,79798.0,79797.0,0.75325396]
[1744315762698,0.000168,79798.0,79797.0,0.62634638]
[1744315762898,0.00023634,79798.0,79797.0,0.603166]
[1744315768450,0.00023634,79798.0,79797.0,0.62634993]
[1744315769388,0.00023634,79798.0,79797.0,0.603166]
[1744315770648,0.0486,79795.0,79790.0,0.012532]
[1744315770834,0.0477,79794.0,79793.0,0.250647]
[1744315771993,0.0477,79794.0,79793.0,0.263179]
[1744315772987,0.0477,79794.0,79793.0,0.250647]
[1744315773202,0.0477,79794.0,79793.0,0.263179]
[1744315773760,0.250665,79788.0,79785.0,0.250672]
[1744315773955,0.25066,79790.0,79786.0,0.250667]
[1744315774155,0.25066,79790.0,79787.0,0.34]
[1744315774581,0.25066,79790.0,79787.0,0.61385205]
[1744315774905,0.263197,79788.0,79787.0,0.02318805]
[1744315775104,0.250679,79784.0,79781.0,0.250685]
[1744315775427,0.250676,79784.0,79780.0,0.250686]
[1744315775558,0.250676,79784.0,79783.0,0.34]
[1744315775969,0.25067,79786.0,79784.0,0.250676]
[1744315776311,0.250667,79787.0,79785.0,0.27386581]
[1744315776669,0.250651,79793.0,79789.0,0.250659]
[1744315777008,0.250654,79792.0,79789.0,0.250659]
[1744315777622,0.0477,79794.0,79793.0,0.250648]
[1744315778339,0.0477,79794.0,79793.0,0.27384181]
[1744315778520,0.0477,79794.0,79793.0,0.28637381]
[1744315779103,0.0477,79794.0,79793.0,0.27384181]
[1744315779307,0.0477,79794.0,79793.0,0.02319381]
[1744315779867,0.0477,79794.0,79793.0,0.27384181]
[1744315782154,0.0477,79794.0,79793.0,0.02319381]
[1744315782330,0.298345,79794.0,79793.0,0.02319381]
[1744315782513,0.298345,79794.0,79790.0,0.28638281]
[1744315782514,0.250648,79793.0,79790.0,0.28638281]
[1744315782853,0.250654,79792.0,79790.0,0.02319381]
[1744315783056,0.263186,79791.0,79790.0,0.02319381]
[1744315783396,0.012533,79787.0,79782.0,0.36319381]
[1744315783601,0.250673,79785.0,79782.0,0.36319381]
[1744315783818,0.298271,79786.0,79782.0,0.37572781]
[1744315784019,0.0476,79786.0,79785.0,0.250673]
[1744315784301,0.250658,79790.0,79787.0,0.250667]
[1744315784720,0.0487,79791.0,79787.0,0.250667]
[1744315785034,0.299354,79791.0,79787.0,0.250667]
[1744315785221,0.299354,79791.0,79788.0,0.250664]
[1744315785422,0.299354,79791.0,79788.0,0.250661]
[1744315785679,0.0487,79791.0,79786.0,0.263197]
[1744315785836,0.25066,79790.0,79786.0,0.263197]
[1744315786018,0.250662,79789.0,79786.0,0.263197]
[1744315786219,0.25066,79790.0,79787.0,0.250666]
[1744315786884,0.0487,79791.0,79788.0,0.012533]
[1744315787031,0.298347,79794.0,79788.0,0.263194]
[1744315787380,0.0477,79794.0,79793.0,0.250648]
[1744315787679,0.0477,79794.0,79792.0,0.26318]
[1744315787889,0.0477,79794.0,79790.0,0.263184]
[1744315788085,0.250652,79792.0,79790.0,0.250652]
[1744315788295,0.0477,79794.0,79790.0,0.250652]
[1744315788494,0.250649,79793.0,79790.0,0.250652]
[1744315788912,0.0477,79794.0,79791.0,0.012532]
[1744315789076,0.0477,79794.0,79792.0,0.263183]
[1744315789269,0.0477,79794.0,79791.0,0.012532]
[1744315789270,0.298345,79794.0,79791.0,0.263186]
[1744315789609,0.298345,79794.0,79791.0,0.250654]
[1744315789942,0.0477,79794.0,79792.0,0.263182]
[1744315790181,0.0477,79794.0,79793.0,0.250648]
[1744315791346,0.0477,79794.0,79791.0,0.263186]
[1744315791599,0.0477,79794.0,79790.0,0.250656]
[1744315791801,0.298351,79794.0,79791.0,0.250653]
[1744315793236,0.298351,79794.0,79785.0,0.012533]
[1744315793237,0.250651,79792.0,79786.0,0.263202]
[1744315793427,0.250654,79792.0,79789.0,0.25066]
[1744315793789,0.250654,79792.0,79790.0,0.250657]
[1744315793990,0.250654,79792.0,79789.0,0.25066]
[1744315794195,0.250654,79792.0,79790.0,0.250657]
[1744315794726,0.250654,79792.0,79789.0,0.25066]
[1744315794968,0.250657,79791.0,79788.0,0.250662]
[1744315795160,0.00023634,79798.0,79793.0,0.012532]
[1744315795293,0.00023634,79798.0,79797.0,0.263166]
[1744315795727,0.00023634,79798.0,79797.0,0.28634645]
[1744315797229,0.00023634,79798.0,79797.0,0.62634645]
[1744315797815,0.00023634,79798.0,79797.0,0.75325403]
[1744315799000,0.00023634,79798.0,79797.0,0.85325403]
[1744315800696,7.8e-07,79800.0,79799.0,0.60316]
[1744315800842,7.8e-07,79800.0,79799.0,0.73006758]
[1744315801042,7.8e-07,79800.0,79799.0,0.85324803]
[1744315802812,7.8e-07,79802.0,79799.0,0.85324803]
[1744315802960,6.8e-07,79807.0,79806.0,0.703137]
[1744315803161,6.8e-07,79807.0,79806.0,0.83004458]
[1744315803348,6.8e-07,79807.0,79806.0,0.87924458]
[1744315803550,6.8e-07,79807.0,79806.0,0.90242503]
[1744315804007,6.8e-07,79807.0,79806.0,1.00242503]
[1744315805949,6.8e-07,79807.0,79806.0,0.62631745]
[1744315807170,6.8e-07,79807.0,79806.0,0.61378745]
[1744315807339,6.8e-07,79807.0,79806.0,0.62631745]
[1744315807542,6.8e-07,79807.0,79806.0,0.603137]
[1744315807962,6.8e-07,79807.0,79806.0,0.73004458]
[1744315808162,6.8e-07,79807.0,79806.0,0.83004458]
[1744315808741,6.8e-07,79807.0,79806.0,0.8531437]
[1744315808936,6.8e-07,79807.0,79806.0,0.9531437]
[1744315811882,0.0001679,79811.0,79810.0,0.603124]
[1744315811883,5.8e-07,79811.0,79810.0,0.603124]
[1744315812198,5.8e-07,79811.0,79810.0,1.6909933]
[1744315812404,5.8e-07,79811.0,79810.0,0.8157063]
[1744315812603,5.8e-07,79811.0,79810.0,0.8639063]
[1744315813154,5.8e-07,79811.0,79810.0,0.9013307]
[1744315813824,5.8e-07,79811.0,79810.0,1.3189307]
[1744315816091,5.8e-07,79811.0,79810.0,1.3190307]
[1744315818070,5.8e-07,79811.0,79810.0,1.4190307]
[1744315819441,5.8e-07,79811.0,79810.0,1.3708307]